Cogmind - Beta 10.2 @@@ ROGUE MODE // 2020.11.03 @ 16:42:33 // Halloween2020/ForbiddenLore Player: Komen Result: Destroyed by as-53749 with Assembled Heavy Rifle Performance ------------- Evolutions (1) 500 Regions Visited (4) 800 Robots Destroyed (28) 140 Value Destroyed (497) 497 Prototype IDs (1) 20 Alien Tech Used (0) 0 Bonus (-235) -235 TOTAL SCORE: 1722 Bonus ------- Friendly Fire -235 Cogmind --------- Core Integrity 0/400 Matter 27/300 Energy 95/100 System Corruption 0% Temperature Cool (0) Movement Flying (280) Ox3 Location -9/Mines Parts ------- > --- POWER (1) -------- (None) > --- PROPULSION (2) --- Flight Unit > --- UTILITY (4) ------ Large Storage Unit Hacking Suite > --- WEAPON (2) ------- (None) > --- INVENTORY (10) --- Light Ion Engine Light Nuclear Core Light Angular Momentum Engine Improved Heat Sink Sensor Array Experimental Sensor Array Peak State ------------ > --- POWER ------------ Ion Engine > --- PROPULSION ------- Aluminum Leg Carbon-fiber Leg > --- UTILITY ---------- Large Storage Unit Hacking Suite Decoy Drone Bay > --- WEAPON ----------- Improved Light Cannon Mini Grenade Launcher > --- INVENTORY -------- Light Ion Engine Light Nuclear Core Light Angular Momentum Engine Flight Unit Improved Heat Sink Sensor Array Experimental Sensor Array Assault Rifle Light Assault Rifle Grenade Launcher [Rating: 29] Favorites ----------- Power Ion Engine Engine Ion Engine Propulsion Carbon-fiber Leg Treads Light Treads Leg Carbon-fiber Leg Flight Unit Flight Unit Utility Hacking Suite Device Decoy Drone Bay Storage Large Storage Unit Hackware Hacking Suite Weapon Assault Rifle Energy Gun Medium Laser Ballistic Gun Assault Rifle Ballistic Cannon Improved Light Cannon Launcher Grenade Launcher Build | -11 -10 -10 -9 -9 ------- Run | Scr Mat Min Mat Min Slots Evolved 2 | . . . 2 . Power . | . . . . . Propulsion . | . . . . . Utility 2 | . . . 2 . Weapon . | . . . . . Parts Attached 22 | 7 4 4 3 4 Power 2 | 1 1 . . . Engine 2 | 1 1 . . . Core . | . . . . . Reactor . | . . . . . Propulsion 7 | 2 . 4 . 1 Treads 2 | 2 . . . . Leg 2 | . . 2 . . Wheel . | . . . . . Hover . | . . . . . Flight 3 | . . 2 . 1 Utility 4 | 1 2 . 1 . Device 1 | . . . 1 . Storage 2 | 1 1 . . . Processor . | . . . . . Hackware 1 | . 1 . . . Protection . | . . . . . Artifact . | . . . . . Weapon 9 | 3 1 . 2 3 Energy Gun 1 | 1 . . . . Energy Cannon . | . . . . . Ballistic Gun 4 | 2 . . . 2 Ballistic Cannon 1 | . . . 1 . Launcher 3 | . 1 . 1 1 Special Weapon . | . . . . . Impact Weapon . | . . . . . Slashing Weapon . | . . . . . Piercing Weapon . | . . . . . Special Melee Weapon . | . . . . . Unidentified Prototypes 1 | . . . 1 . Parts Lost 12 | . 1 2 . 9 Power 1 | . . . . 1 Propulsion 4 | . . 2 . 2 Utility 1 | . . . . 1 Weapon 6 | . 1 . . 5 Highest Loss Streak 3 | . 1 2 . 3 Average Slot Usage (%) 89 | . 89 97 88 63 Engine 12 | . 14 14 11 7 Treads 5 | . 28 2 . . Leg 14 | . . 18 22 10 Flight 3 | . . 5 . . Device 1 | . . . 11 5 Storage 13 | . 14 14 11 11 Hackware 11 | . 4 14 11 11 Ballistic Gun 11 | . 14 14 4 1 Ballistic Cannon 1 | . . . 6 7 Launcher 12 | . 8 14 11 8 Naked Turns . | . . . . . Heaviest Build 40 | 11 26 26 40 40 Greatest Support 40 | 40 40 40 25 25 Greatest Overweight (x) 8 | 2 . 8 1 8 Average Overweight (x) 1 | . . 1 1 1 Largest Inventory Capacity 10 | 6 10 10 10 10 Average Capacity 9 | 5 6 10 10 10 Most Carried 10 | 1 5 10 10 10 Average Carried 7 | . 1 9 9 9 Final Capacity 10 | 6 10 10 10 10 Final Carried 10 | 1 5 10 10 6 Class Distribution -------------------- 100% | Mutant Dominant Class ---------------- Mutant | -10/Materials Mutant | -10/Mines Mutant | -9/Materials Mutant | -9/Mines Resources | -11 -10 -10 -9 -9 ----------- Run | Scr Mat Min Mat Min Matter Collected 508 | 157 75 199 . 77 Remotely . | . . . . . Salvage Created 398 | . 141 102 . 155 Parts 26 | . 10 9 . 7 Haulers Intercepted . | . . . . . Recyclers Shooed 1 | . . 1 . . Parts Field Recycled . | . . . . . Retrieved Matter . | . . . . . Parts Self-Destructed . | . . . . . Prevented . | . . . . . Kills | -11 -10 -10 -9 -9 ------- Run | Scr Mat Min Mat Min Combat Hostiles Destroyed 22 | . 6 4 . 12 Guns 3 | . 1 1 . 1 Cannons 3 | . . . . 3 AOE 16 | . 5 3 . 8 Classes Destroyed 9 | . 4 1 . 4 Worker 2 | . . 2 . . Recycler 1 | . . . . 1 Operator 1 | . 1 . . . Drone 1 | . . . . 1 Watcher 1 | . 1 . . . Swarmer 4 | . 3 1 . . Grunt 8 | . 3 3 . 2 Demolisher 2 | . . . . 2 Assembled 8 | . . . . 8 Best Kill Streak 9 | . 4 4 . 9 Combat Bots Only 8 | . 3 2 . 8 Max Kills in Single Turn 3 | . 3 2 . 2 Gunslinging . | . . . . . Exploded 3 | . 3 1 . 2 Melee . | . . . . . Uniques/NPCs Destroyed . | . . . . . Combat | -11 -10 -10 -9 -9 -------- Run | Scr Mat Min Mat Min Damage Taken 1854 | . 402 200 . 1252 Core 548 | . 105 33 . 410 Absorbed by Shields . | . . . . . Core Remaining (%) 72 | 100 . 44 . . Volleys Fired 57 | . 15 12 1 29 Largest 2 | . 2 2 1 2 Hottest 70 | . 70 50 39 69 Shots Fired 95 | . 29 20 1 45 Gun 46 | . 21 12 . 13 Cannon 17 | . . . 1 16 Launcher 32 | . 8 8 . 16 Special . | . . . . . Kinetic 57 | . 15 12 1 29 Thermal 6 | . 6 . . . Explosive 32 | . 8 8 . 16 Electromagnetic . | . . . . . Robot Hit Streak 5 | . 5 4 1 5 Robot Miss Streak 4 | . 3 4 . 4 Penetration Max . | . . . . . Secondary Targets . | . . . . . Shots Hit Robots 44 | . 17 7 1 19 Core Hits 50 | . 13 9 . 28 Critical Hits . | . . . . . Critical Kills . | . . . . . Critical Parts Destroyed . | . . . . . Melee Attacks . | . . . . . Impact . | . . . . . Slashing . | . . . . . Piercing . | . . . . . Sneak Attacks . | . . . . . Combat Hostiles . | . . . . . Follow-up Attacks . | . . . . . Damage Inflicted 2065 | . 559 419 23 1064 Guns 279 | . 179 47 . 53 Cannons 150 | . . . 23 127 Explosions 1629 | . 380 372 . 877 Melee . | . . . . . Ramming 7 | . . . . 7 Kinetic 379 | . 129 47 23 180 Thermal 50 | . 50 . . . Explosive 1629 | . 380 372 . 877 Electromagnetic . | . . . . . Impact . | . . . . . Slashing . | . . . . . Piercing . | . . . . . Highest Corruption . | . . . . . Average Corruption . | . . . . . Corruption Purged . | . . . . . Overload Shots . | . . . . . Overflow Damage 68 | . 12 10 . 46 Projectiles . | . . . . . Explosions 68 | . 12 10 . 46 Melee . | . . . . . Knockbacks 1 | . . . 1 . Impact . | . . . . . Kinetic 1 | . . . 1 . Secondary . | . . . . . Self-Inflicted Damage 208 | . 71 15 . 122 Shots 10 | . 4 2 . 4 Rammed 18 | . . . . 18 Targets Rammed 18 | . . . . 18 Kicked . | . . . . . Crushed . | . . . . . Highest Temperature 159 | . 159 19 . 20 Average Temperature 72 | . 91 11 . 20 Received Heat Transfer 269 | . 177 72 . 20 Siege Activations . | . . . . . Robots Corrupted . | . . . . . Combat Hostiles . | . . . . . Parts Fried . | . . . . . Impact Corruptions . | . . . . . Robots Melted . | . . . . . Combat Hostiles . | . . . . . Parts Melted . | . . . . . Heat Transferred 148 | . 148 . . . Parts Sabotaged . | . . . . . Parts Stolen . | . . . . . Parts Stripped . | . . . . . Power Chain Reactions . | . . . . . Missiles Intercepted . | . . . . . Alert | -11 -10 -10 -9 -9 ------- Run | Scr Mat Min Mat Min Peak Influence 215 | . 92 140 215 180 Initial 75 | . . 35 . 75 Average 59 | . 28 48 44 136 Maximum Alert Level 1 | . . . 1 . Low Security (%) 99 | 100 100 100 96 100 Level 1 . | . . . 3 . Level 2 . | . . . . . Level 3 . | . . . . . Level 4 . | . . . . . Level 5 . | . . . . . High Security . | . . . . . Max Security . | . . . . . Squads Dispatched 5 | . 2 . 3 . Investigation 2 | . 1 . 1 . Extermination . | . . . . . Reinforcement 3 | . 1 . 2 . Assault . | . . . . . Garrison . | . . . . . Intercept . | . . . . . Construction Impeded . | . . . . . Haulers Reinforced . | . . . . . Stealth | -11 -10 -10 -9 -9 --------- Run | Scr Mat Min Mat Min Distress Signals 2 | . 1 . 1 . Communications Jammed . | . . . . . Distress Signals . | . . . . . Times Spotted 49 | . 11 5 11 22 Peak Tracking Total 7 | . 4 2 5 7 Tactical Retreats 1 | . . . . 1 Traps | -11 -10 -10 -9 -9 ------- Run | Scr Mat Min Mat Min Traps Triggered . | . . . . . Indirectly . | . . . . . Trap Hack Attempts . | . . . . . Triggered . | . . . . . Disarmed . | . . . . . Reprogrammed . | . . . . . Reused . | . . . . . Traps Extracted . | . . . . . Installed . | . . . . . Triggered . | . . . . . Machines | -11 -10 -10 -9 -9 ---------- Run | Scr Mat Min Mat Min Machines Disabled . | . . . . . Max in Single Turn . | . . . . . Machines Sabotaged . | . . . . . Garrisons Compromised . | . . . . . Overloaded Fab Kills . | . . . . . Fab Network Shutdowns . | . . . . . Hacking | -11 -10 -10 -9 -9 --------- Run | Scr Mat Min Mat Min Machines Accessed 4 | . 2 1 1 . Terminals 3 | . 2 . 1 . Fabricators . | . . . . . Repair Stations . | . . . . . Recycling Units . | . . . . . Scanalyzers . | . . . . . Garrison Access . | . . . . . Total Hacks 9 | . 6 1 2 . Successful 6 | . 3 1 2 . Failed 3 | . 3 . . . Catastrophic 1 | . 1 . . . Database Lockouts . | . . . . . Manual 1 | . . 1 . . Terminals 8 | . 6 . 2 . Fabricators . | . . . . . Repair Stations . | . . . . . Recycling Units . | . . . . . Scanalyzers . | . . . . . Garrison Access . | . . . . . Terminal Hacks 6 | . 3 1 2 . Record 2 | . 2 . . . Open Door 1 | . . 1 . . Level Access Points 1 | . . . 1 . Unreport Threat 1 | . 1 . . . Locate Traps 1 | . . . 1 . Fabricator Hacks . | . . . . . Repair Station Hacks . | . . . . . Recycling Unit Hacks . | . . . . . Scanalyzer . | . . . . . Garrison Access Hacks . | . . . . . Unauthorized Hacks . | . . . . . Terminals . | . . . . . Fabricators . | . . . . . Repair Stations . | . . . . . Recycling Units . | . . . . . Scanalyzers . | . . . . . Garrison Access . | . . . . . Data Cores Recovered 1 | . 1 . . . Used . | . . . . . Hacking Detections 3 | . 2 . 1 . Full Trace Events 1 | . 1 . . . Feedback Events . | . . . . . Feedback Blocked . | . . . . . Robot Schematics Acquired . | . . . . . Robots Built . | . . . . . Matter . | . . . . . Time . | . . . . . Total Robot Build Rating . | . . . . . Part Schematics Acquired . | . . . . . Parts Built . | . . . . . Matter . | . . . . . Time . | . . . . . Total Part Build Rating . | . . . . . Parts Repaired . | . . . . . Time . | . . . . . Parts Recycled . | . . . . . Recycled Matter . | . . . . . Retrieved Matter . | . . . . . Retrieved Components . | . . . . . Parts Scanalyzed . | . . . . . Part Schematics Acquired . | . . . . . Parts Damaged . | . . . . . Bothacking | -11 -10 -10 -9 -9 ------------ Run | Scr Mat Min Mat Min Used RIF Installer . | . . . . . Robots Hacked . | . . . . . Non-combat . | . . . . . Combat . | . . . . . Robot Hacks Applied . | . . . . . Relay Couplers Released . | . . . . . Robots Rewired . | . . . . . Allies Hacked . | . . . . . Hacks Repelled . | . . . . . Allies | -11 -10 -10 -9 -9 -------- Run | Scr Mat Min Mat Min Total Allies . | . . . . . Largest Group . | . . . . . Highest-Rated Group . | . . . . . Highest-Rated Ally . | . . . . . Total Orders . | . . . . . Ally Attacks . | . . . . . Total Damage . | . . . . . Kills . | . . . . . Allies Corrupted . | . . . . . Allies Melted . | . . . . . Intel | -11 -10 -10 -9 -9 ------- Run | Scr Mat Min Mat Min Robot Analysis Total . | . . . . . Derelict Logs Recovered 1 | . . 1 . . Drone Launches 16 | . . . 16 . Drone Recoveries . | . . . . . Exploration | -11 -10 -10 -9 -9 ------------- Run | Scr Mat Min Mat Min Turns Passed 1703 | 68 213 1010 101 311 Spaces Moved 826 | 40 99 537 63 87 Core 39 | 14 . 13 . 12 Treads 163 | 26 99 38 . . Legs 559 | . . 424 63 72 Wheels . | . . . . . Hover . | . . . . . Flight 65 | . . 62 . 3 Fastest Speed 50 | 50 160 150 150 150 Average Speed 169 | 144 160 172 150 183 Slowest Speed 450 | 160 160 450 150 450 Overloaded Moves . | . . . . . Propulsion Burnouts . | . . . . . Robots Hopped . | . . . . . Cave-ins Triggered . | . . . . . Exploration Rate (%) 36 | 4 24 68 41 47 Regions Visited 4 Branch Regions 2 Pre-discovered Areas 1 | . . 1 . . Known Exits Taken . | . . . . . Unknown Exits Taken 4 | 1 1 1 1 . Scrap Searched 1 | . . 1 . . Spaces Dug . | . . . . . Terrain Destroyed 247 | . 48 61 . 138 Melee . | . . . . . Projectile 1 | . . . . 1 AOE 246 | . 48 61 . 137 Terrain Rammed . | . . . . . Walls Destroyed . | . . . . . Machines Disabled . | . . . . . Actions | -11 -10 -10 -9 -9 --------- Run | Scr Mat Min Mat Min Total 991 | 47 124 600 69 151 Wait 50 | 1 1 37 . 11 Move 822 | 39 98 536 62 87 Hop . | . . . . . Pick Up 10 | . 4 6 . . Fast Attach 17 | 6 2 4 3 2 Attach 2 | . . . . 2 Detach 3 | . . 1 2 . Swap 3 | 1 2 . . . Drop 9 | . 2 4 1 2 Fire 57 | . 15 12 1 29 Melee . | . . . . . Ram 18 | . . . . 18 Kick . | . . . . . Crush . | . . . . . Escape Stasis . | . . . . . Rewire . | . . . . . Trap . | . . . . . Miscellaneous . | . . . . . Route ------- -11/Scrapyard -10/Materials -10/Mines -9/Materials (discovered 6 exits: Mat x3 / [*Min x2] / [*Sto]) -9/Mines (discovered 1 exit: *Mat) History --------- Turn | Location | Event 11 | -11/Scrapyard | Discovered new exit (range 16) 69 | -11/Scrapyard | Entered Materials 270 | -10/Materials | Discovered new exit (range 7) 282 | -10/Materials | Entered Mines 302 | -10/Mines | Met a Derelict bent on vengeance 306 | -10/Mines | Build established: Mutant 365 | -10/Mines | Core integrity fell below 50% 379 | -10/Mines | Found a damaged Exp. Sensor Array with a note attached 382 | -10/Mines | Found Prototype Device 733 | -10/Mines | Found a hidden stash of uninstalled traps 905 | -10/Mines | Found the Drone Emporium 912 | -10/Mines | Found Prototype Device 930 | -10/Mines | Discovered new exit (range 7) 1292 | -10/Mines | Entered Materials 1292 | -9/Materials | Evolved 2 slots: Utility x2 1293 | -9/Materials | Identified Decoy Drone Bay 1350 | -9/Materials | Discovered new exit (range 17) 1360 | -9/Materials | Identified exit to Materials 1369 | -9/Materials | Discovered new exit (range 66) 1374 | -9/Materials | Discovered new exit (range 55) 1393 | -9/Materials | Entered Mines 1393 | -9/Mines | Accompanied by 4 allies 1406 | -9/Mines | Discovered exit to Materials (range 69) 1436 | -9/Mines | Assembled infested the area 1550 | -9/Mines | Destroyed 8 combat bots 1587 | -9/Mines | Lost 3 parts (2n1u) 1613 | -9/Mines | Core integrity fell below 50% 1653 | -9/Mines | Lost 3 parts (1p2w) 1688 | -9/Mines | Core integrity fell below 20% 1704 | -9/Mines | Destroyed by as-53749 with Assembled Heavy Rifle Last Messages --------------- Slammed into as-32417. Destabilizing: System interference. Mni. Grenade Launcher temporarily disabled. Slammed into as-32417. Mni. Grenade Launcher destroyed. Slammed into as-32417. Dropped Lgt. Assault Rifle. Acquired Lgt. Assault Rifle. as-32417 destroyed. Acquired 20 matter. Acquired 7 matter. The unstable cave ceiling collapses. Lgt. Assault Rifle destroyed. Destroyed Lgt. Assault Rifle. Grenade Launcher destroyed. Destroyed Grenade Launcher. Dropped Assault Rifle. The unstable cave ceiling collapses. Acquired Assault Rifle. Assault Rifle destroyed. Map ----- +----------------------------------------------------+ | | | ?????????????????????????????????????????????????? | | ###??????????????????????????????????????????????? | | #??????????????????????????????????????????????? | | #??????????????????????????????????????????????? | | ###??????????????????????????????????????????????? | | ##?????????????????????????????????????????????? | | #####?????????????????????????????????????????? | | # ????????????????????????????????????????? | | # # #????????????????????????????????????????? | | ## ##???????????????????????????????????????? | | # #%###??????????????????????????????????????? | | # #??#####???????????????????????????????? | | % ##??## # ??????????????????????????????? | | ## #??# #?????????????????????????????? | | # ## #?# # #????????????????????????????? | | ## ### #????????????????????????????? | | ## ##??????????????????????????? | | % # ##????????????????????????? | | ##???????????????????????? | | ## # a ##??????????????????????? | | # # #?# ##?????????????????????? | | # ### ### < #?????????????????????? | | # ###### %= #?????????????????????? | | ###### = ## ##????????????????????? | | ???## #### @ #????????????????????? | | #### ####??## #????????????????????? | | = #????## ##????????????????????? | | ##### ### # #????## #?????????????????????? | | ????# ##?# # ?????? #?????????????????????? | | ????# #??# # ????? #?????????????????????? | | ???## #??# # #????##?????????????????????? | | #### ##??########?????????????????????????????? | | #???????????????????????????????????????? | | #### #??????????????????????????????????????? | | #??## #?????????????????????????????????????? | | #???# #?????????????????????????????????????? | | #???# ##?????????????????????????????????????? | | #???## #??????????????????????????????????????? | | ?????## #?????????????????????????????????????? | | ???????# #????????????????????????????????????? | | #???????# #???????????????????????????????????? | | ##???????# ##???????????????????????????????????? | | ##???????###????????????????????????????????????? | | ##?????????????????????????????????????????????? | | #####?????????????????????????????????????????? | | #?????????????????????????????????????????? | | #?????????????????????????????????????????? | | ## #?????????????????????????????????????????? | | ### #?????????????????????????????????????????? | +----------------------------------------------------+ Best States ------------- Heat Dissipation 28 Energy Generation 10 Energy Capacity 250 Matter Stores 187 Matter Capacity 300 Sight Range 16 Terrain Scan Density 10 Evasion (%) 40 Recoil Reduction 2 Offensive Hacking 10 Item Schematics ----------------- None Robot Schematics ------------------ None Fabricated ------------ Nothing Alien Tech Used ----------------- None Achievements -------------- Everything Is Under Control Challenges ------------ None Game ------ Seed AssaultFissionCoupler Manual? 0 Play Time 00:26:03 Cumulative 21.3 hours Start 2020.10.30 @ 18:17:08 End 2020.11.03 @ 16:42:33 Sessions 2 Manual Loads 0 Difficulty Rogue Special Mode Halloween2020/ForbiddenLore Game No. 44 Rogue 44 Adventurer 0 Explorer 0 Win Type - Total 0 Types 0/0/0/0/0/0/0/0/0 Lore% 10 Gallery% 24 Achievement% 19 Wizard Run 0 Options --------- ASCII 0 Keyboard 0 Movement Mouse Keybinds 0 Fullscreen 1 Font 24/Smallcaps Map View 76x50 Tactical HUD 0 Map Filters NONE Filters NONE Steam 1 RUN: b7e3eda3-a288-4817-9f15-3b7a81be3b52